Cogmind - Beta 16 @@@ ROGUE MODE // 2025.12.27 @ 11:41:15 Player: EuleBlut Result: Destroyed by S-10 Pest with Light Assault Rifle Performance ------------- Evolutions (0) 0 Regions Visited (1) 200 Robots Destroyed (23) 115 Value Destroyed (426) 426 Prototype IDs (0) 0 Alien Tech Used (0) 0 Bonus (0) 0 TOTAL SCORE: 741 Bonus ------- None Cogmind --------- Core Integrity 0/250 Matter 288/300 Energy 250/250 System Corruption 0% Temperature Cool (0) Movement Hovering (300) Ox4 Location -10/Materials Parts ------- > --- POWER (1) -------- Ion Engine > --- PROPULSION (2) --- Hover Unit > --- UTILITY (2) ------ Large Storage Unit Machine Analyzer > --- WEAPON (2) ------- Small Laser > --- INVENTORY (15) --- Ion Engine Ion Engine Large Storage Unit Light Assault Rifle Peak State ------------ > --- POWER ------------ Ion Engine > --- PROPULSION ------- Hover Unit Hover Unit > --- UTILITY ---------- Large Storage Unit Machine Analyzer > --- WEAPON ----------- Small Laser Assault Rifle > --- INVENTORY -------- Ion Engine Ion Engine Large Storage Unit [Rating: 9] Favorites ----------- Power Light Ion Engine Engine Light Ion Engine Propulsion Compact Wheel Wheel Compact Wheel Hover Unit Hover Unit Utility Large Storage Unit Storage Large Storage Unit Processor Machine Analyzer Protection Core Shielding Weapon Small Laser Energy Gun Small Laser Ballistic Gun Light Assault Rifle Build | -11 -10 ------- Run | Yrd Mat Slots Evolved . | . . Power . | . . Propulsion . | . . Utility . | . . Weapon . | . . Parts Attached 17 | 6 11 Power 3 | 1 2 Engine 3 | 1 2 Core . | . . Reactor . | . . Propulsion 6 | 2 4 Treads . | . . Leg . | . . Wheel 4 | 2 2 Hover 2 | . 2 Flight . | . . Utility 4 | 1 3 Device . | . . Storage 2 | 1 1 Processor 1 | . 1 Hackware . | . . Protection 1 | . 1 Artifact . | . . Weapon 4 | 2 2 Energy Gun 2 | 1 1 Energy Cannon . | . . Ballistic Gun 2 | 1 1 Ballistic Cannon . | . . Launcher . | . . Special Weapon . | . . Impact Weapon . | . . Slashing Weapon . | . . Piercing Weapon . | . . Special Melee Weapon . | . . Unidentified Prototypes . | . . Parts Lost 11 | . 11 Power 2 | . 2 Propulsion 5 | . 5 Utility 1 | . 1 Weapon 3 | . 3 Highest Loss Streak 5 | . 5 To Critical Strikes . | . . Average Backups 3 | 1 4 Power 1 | . 1 Propulsion 1 | . 1 Utility . | . 1 Weapon . | . . Tool/Special . | . . Unused Backups 3 | . 3 Power 2 | . 2 Propulsion . | . . Utility 1 | . 1 Weapon . | . . Tool/Special . | . . Average Slot Usage (%) 94 | . 94 Engine 13 | . 13 Wheel 23 | . 23 Hover 2 | . 2 Storage 14 | . 14 Processor 1 | . 1 Protection 11 | . 11 Energy Gun 11 | . 11 Ballistic Gun 13 | . 13 Peak Build Rating 9 | 6 9 Average Rating 6 | 4 6 On Entrance 3 | . 6 Avg Prop Armor Cover (%) . | . . Naked Turns . | . . Heaviest Build 28 | 10 28 Greatest Support 32 | 26 32 Greatest Overweight (x) 4 | . 4 Average Overweight (x) . | . . Largest Inventory Capacity 15 | 8 15 Average Capacity 13 | 7 14 Most Carried 8 | 5 8 Average Carried 4 | 2 4 Final Capacity 15 | 8 15 Final Carried 4 | 2 4 Class Distribution -------------------- 87% | Mutant 12% | Scavenger-Mutant Dominant Class ---------------- Mutant | -10/Materials Resources | -11 -10 ----------- Run | Yrd Mat Matter Collected 445 | 260 185 Remotely . | . . Salvage Created 689 | . 689 Parts 49 | . 49 Haulers Intercepted . | . . Recyclers Shooed 1 | . 1 Parts Field Recycled . | . . Retrieved Matter . | . . Parts Self-Destructed . | . . Prevented . | . . Parts Restored . | . . Kills | -11 -10 ------- Run | Yrd Mat Combat Hostiles Destroyed 17 | . 17 Guns 17 | . 17 Classes Destroyed 7 | . 7 Builder 1 | . 1 Tunneler 2 | . 2 Recycler 1 | . 1 Mechanic 1 | . 1 Watcher 1 | . 1 Swarmer 9 | . 9 Grunt 8 | . 8 Best Kill Streak 8 | . 8 Combat Bots Only 6 | . 6 Max Kills in Single Turn 2 | . 2 Gunslinging . | . . Exploded . | . . Melee . | . . Uniques/NPCs Destroyed . | . . Combat | -11 -10 -------- Run | Yrd Mat Hostile Shots Fired 139 | . 139 Missed 41 | . 41 Hits 98 | . 98 Projectile 98 | . 98 Damage Taken 936 | . 936 Core 254 | . 254 Absorbed by Shields . | . . Redirected to Shielding 50 | . 50 Core Remaining (%) 100 | 100 . Volleys Fired 71 | . 71 Largest 2 | . 2 Hottest 60 | . 60 Shots Fired 109 | . 109 Gun 109 | . 109 Cannon . | . . Launcher . | . . Special . | . . Kinetic 71 | . 71 Thermal 38 | . 38 Explosive . | . . Electromagnetic . | . . Robot Hit Streak 10 | . 10 Robot Miss Streak 5 | . 5 Penetration Max . | . . Secondary Targets 2 | . 2 Max Gunslinging Chain 1 | . 1 Shots Hit Robots 66 | . 66 Core Hits 37 | . 37 Critical Kills . | . . Critical Parts Destroyed . | . . Critical Strikes . | . . Melee Attacks . | . . Impact . | . . Slashing . | . . Piercing . | . . Sneak Attacks . | . . Combat Hostiles . | . . Follow-up Attacks . | . . Damage Inflicted 743 | . 743 Guns 743 | . 743 Cannons . | . . Explosions . | . . Melee . | . . Ramming . | . . Kinetic 477 | . 477 Thermal 266 | . 266 Explosive . | . . Electromagnetic . | . . Impact . | . . Slashing . | . . Piercing . | . . Highest Corruption . | . . Average Corruption . | . . Corruption Purged . | . . Corruption Blocked . | . . Overload Shots . | . . Overflow Damage . | . . Projectiles . | . . Explosions . | . . Melee . | . . Knockbacks . | . . Impact . | . . Kinetic . | . . Secondary . | . . Self-Inflicted Damage . | . . Shots . | . . Rammed . | . . Targets Rammed . | . . Kicked . | . . Crushed . | . . Highest Temperature 110 | . 110 Average Temperature 29 | . 29 Received Heat Transfer 342 | . 342 Siege Activations . | . . Martial Activations . | . . Shielding Activations . | . . Robots Disrupted . | . . Combat Hostiles . | . . Robots Corrupted . | . . Combat Hostiles . | . . Parts Fried . | . . Impact Corruptions . | . . Robots Melted . | . . Combat Hostiles . | . . Parts Melted . | . . Heat Transferred 625 | . 625 Parts Sabotaged . | . . Parts Stolen . | . . Parts Stripped . | . . Power Chain Reactions . | . . Alert | -11 -10 ------- Run | Yrd Mat Maximum Alert Level 1 | . 1 Low Security (%) 70 | 100 65 Level 1 29 | . 34 Level 2 . | . . Level 3 . | . . Level 4 . | . . Level 5 . | . . High Security . | . . Max Security . | . . Peak Influence 253 | . 253 Initial . | . . Average 117 | . 137 Influence Increases 493 | . 493 Destroy 0b10 Robot/C 340 | . 340 Destroy 0b10 Robot/NC 30 | . 30 Destroy Leader 62 | . 62 Disable Machine 15 | . 15 Destroy Structure 1 | . 1 Lose Combat Pursuer 45 | . 45 Influence Decreases 278 | . 278 Time Decay 168 | . 168 Lost Part 110 | . 110 Squads Dispatched 4 | . 4 Investigation 1 | . 1 Extermination . | . . Reinforcement 3 | . 3 Assault . | . . Garrison . | . . Intercept . | . . Searches Triggered . | . . Construction Impeded . | . . Haulers Reinforced . | . . Active Scanning Responses . | . . Cargo Convoy Interrupts . | . . Stealth | -11 -10 --------- Run | Yrd Mat Distress Signals 3 | . 3 Communications Jammed . | . . Distress Signals . | . . Times Spotted 33 | . 33 Peak Tracking Total 9 | . 9 Tactical Retreats 2 | . 2 Traps | -11 -10 ------- Run | Yrd Mat Traps Triggered . | . . Indirectly . | . . Trap Hack Attempts . | . . Triggered . | . . Disarmed . | . . Reprogrammed . | . . Reused . | . . Traps Extracted . | . . Installed . | . . Triggered . | . . Machines | -11 -10 ---------- Run | Yrd Mat Machines Disabled 1 | . 1 Max in Single Turn 1 | . 1 Machines Repaired . | . . Machines Dismantled . | . . Machines Sabotaged . | . . Overloaded Fab Kills . | . . Hacking | -11 -10 --------- Run | Yrd Mat Machines Accessed 2 | . 2 Terminals 2 | . 2 Fabricators . | . . Repair Stations . | . . Recycling Units . | . . Scanalyzers . | . . Garrison Access . | . . Total Hacks 5 | . 5 Successful . | . . Failed 5 | . 5 Catastrophic 3 | . 3 Database Lockouts . | . . Manual 5 | . 5 Terminals 5 | . 5 Fabricators . | . . Repair Stations . | . . Recycling Units . | . . Scanalyzers . | . . Garrison Access . | . . Terminal Hacks . | . . Fabricator Hacks . | . . Repair Station Hacks . | . . Recycling Unit Hacks . | . . Scanalyzer . | . . Garrison Access Hacks . | . . Unauthorized Hacks . | . . Terminals . | . . Fabricators . | . . Repair Stations . | . . Recycling Units . | . . Scanalyzers . | . . Garrison Access . | . . Data Cores Recovered . | . . Used . | . . Hacking Detections 2 | . 2 Full Trace Events 1 | . 1 Feedback Events . | . . Feedback Blocked . | . . Robot Schematics Acquired . | . . Robots Built . | . . Authchips . | . . Time . | . . Total Robot Build Rating . | . . Part Schematics Acquired . | . . Parts Built . | . . Authchips . | . . Time . | . . Total Part Build Rating . | . . Part Studies Acquired . | . . Parts Repaired . | . . Time . | . . Parts Recycled . | . . Recycled Matter . | . . Retrieved Matter . | . . Retrieved Components . | . . Parts Scanalyzed . | . . Part Schematics Acquired . | . . Parts Damaged . | . . Bothacking | -11 -10 ------------ Run | Yrd Mat Used RIF Installer . | . . Robots Hacked . | . . Non-combat . | . . Combat . | . . Robot Hacks Applied . | . . Relay Couplers Released . | . . Fabnet Peak Effective % . | . . Robots Rewired . | . . Allies Hacked . | . . Hacks Repelled . | . . Allies | -11 -10 -------- Run | Yrd Mat Total Allies . | . . Largest Group . | . . Highest-Rated Group . | . . Highest-Rated Ally . | . . Total Orders . | . . Ally Attacks . | . . Total Damage . | . . Kills . | . . Allies Corrupted . | . . Allies Melted . | . . Intel | -11 -10 ------- Run | Yrd Mat Active Infowar (turns) 44 | . 44 Machine Analysis 44 | . 44 Robot Analysis Total . | . . Derelict Logs Recovered . | . . Drone Launches . | . . Drone Recoveries . | . . Exploration | -11 -10 ------------- Run | Yrd Mat Turns Passed 589 | 86 503 Spaces Moved 378 | 77 301 Core 4 | 4 . Treads . | . . Legs . | . . Wheels 356 | 73 283 Hover 18 | . 18 Flight . | . . Fastest Speed 50 | 50 90 Average Speed 96 | 87 98 Slowest Speed 300 | 90 300 Overloaded Moves . | . . Propulsion Burnouts . | . . Robots Hopped . | . . Potential Cave-ins . | . . Cave-ins Triggered . | . . Exploration Rate (%) 26 | 4 48 Regions Visited 1 Branch Regions . Pre-discovered Areas . | . . Known Exits Taken . | . . Unknown Exits Taken 1 | 1 . Scrap Searched . | . . Spaces Dug . | . . Terrain Destroyed . | . . Melee . | . . Projectile . | . . AOE . | . . Terrain Rammed . | . . Walls Destroyed . | . . Machines Disabled . | . . Actions | -11 -10 --------- Run | Yrd Mat Total 502 | 95 407 Wait 13 | 5 8 Move 377 | 76 301 Hop . | . . Pick Up 21 | 8 13 Fast Attach . | . . Attach 17 | 6 11 Detach 1 | . 1 Swap 1 | . 1 Drop 1 | . 1 Fire 71 | . 71 Melee . | . . Ram . | . . Kick . | . . Crush . | . . Escape Stasis . | . . Rewire . | . . Trap . | . . Miscellaneous . | . . Route ------- -11/Scrapyard -10/Materials (discovered 1 exit: [*Mat]) History --------- Turn | Location | Event 15 | -11/Scrapyard | Discovered new exit (range 15) 87 | -11/Scrapyard | Entered Materials 313 | -10/Materials | Build established: Mutant 324 | -10/Materials | Discovered new exit (range 7) 456 | -10/Materials | Core integrity fell below 50% 465 | -10/Materials | Lost 5 parts (1p2n2w) 529 | -10/Materials | Core integrity fell below 20% 571 | -10/Materials | Lost 4 parts (1p2n1u) 590 | -10/Materials | Destroyed by S-10 Pest with Light Assault Rifle Last Messages --------------- Lgt. Ion Engine destroyed. Com. Wheel destroyed. Core Shielding destroyed. S-10 Pest destroyed. K-01 Serf collects debris. S-10 Pest destroyed. K-01 Serf collects debris. S-10 Pest destroyed. >> Machine Analyzer network decryption results: Terminal x1 Acquired 32 matter. K-01 Serf collects debris. Acquired Lgt. Assault Rifle. Acquired 10 matter. >> Machine Analyzer network decryption results: Repair Station x1 K-01 Serf collects debris. Hover Unit destroyed. W-16 Scout sends out distress signal. Assault Rifle destroyed. Map ----- +----------------------------------------------------+ | | | | | ?????????????????????????????????????????? | | ?????????????????????????????????????????? | | ?????????????????????????????????????????? | | ?????????????????????????????????????????? | | ?????????????????????????????????????????? | | ?????????????????????????????????????????? | | ?????????????????????????????????????????? | | ?????????????????????????????????????????? | | ?????????????????????????????????????????? | | ?????????????????????????????????????????? | | ??########???????????????????????????????? | | ?? #???????????????????????????????? | | ?? #?????????"""""""???????????"""?? | | ??? #?????????"""""""???????????"T"?? | | ???# ########??"""""""???????????????? | | ???# # #??"""""""???????"""?"""?? | | #### # #??"""""""???????"""?"""?? | | # # """ #?????????????#??"""?"""?? | | "" # # """ #???????????? #??????????? | | "" # # """ #??????????? #??????????? | | "" # # ==[ #??????????# ##?????????? | | # ###+############## #### #????? | | "" # g " #????? | | "" + * g k @ #????? | | "" # =%==! ###### ## ###???????? | | # "% =%" ""#??# #??? #?????????? | | "" # ""%%""" ""#??# #????? #???????? | | "" #[ """= """ T"#??# s #???????#???????? | | "" # !""" """ ""#??# #???????????????? | | # "" "" ""#??# #???????????????? | | #### """ """ ###??# #???????????????? | | ???# "" "" #????# #???????????????? | | ???# ""^ "" #????# ???????????????? | | ???# " " #????# ???????????????? | | ####| #????# ???????????????? | | =%* ##???####/#??????????????? | | ####% " ""??"""?? ??????????????? | | ??"" """ T"??"R"?? ??????????????? | | ?#"T """ ""??"?"?? ??????????????? | | ?#"" """ ##??????"""??????????????? | | ?### "" "#??????"""??????????????? | | ???# """ T#??????"""??????????????? | | ???# "" "#???????????????????????? | | ???# "" #????????????????????????? | | #### " #???????#+###????????????? | | ## ####### #????????????? | | "T" #????????????? | | #????????????? | +----------------------------------------------------+ Best States ------------- Heat Dissipation 25 Energy Generation 10 Energy Capacity 250 Matter Stores 300 Matter Capacity 300 Sight Range 16 Terrain Scan Density 10 Core Shielding 20 Evasion (%) 42 Item Schematics ----------------- None Robot Schematics ------------------ None Fabricated ------------ Nothing Repaired ---------- Nothing Studied --------- None Alien Tech Used ----------------- None Achievements -------------- None Challenges ------------ None Game ------ Seed PrecisionRapidShielding Manual? 0 Play Time 00:10:11 Cumulative 14.5 hours Start 2025.12.27 @ 11:33:52 End 2025.12.27 @ 11:41:15 Sessions 1 Manual Loads 0 Difficulty Rogue Special Mode None Game No. 42 Rogue 41 Adventurer 0 Explorer 1 Win Type - Total 0 Types 0/0/0/0/0/0/0/0/0/0 Lore% 8 Gallery% 16 Achievement% 13 Wizard Run 0 Options --------- Layout 1 ASCII 0 Keyboard 0 Movement Mouse Keybinds 0 Fullscreen 2 Font 24/Smallcaps Map View 50x35 Zoom Use 0% Tactical HUD 0 Map Filters NONE Filters NONE Steam 1 RUN: d5665ad1-aee5-48fc-91e9-bb87a9b502b3